Workbook

Sheet Sheet1
A1: 保山电力腾冲分公司2025年一季度配电网接入能力公示表
A2: 序号 | B2: 设备名称（准确、完整描述配变名称） | C2: 电压等级(kV) | D2: 季度平均负载率（%） | E2: 最大负载率（%） | F2: 负载情况（轻载、重载、过载） | G2: 可开放容量(kVA) | H2: 是否接入受限（是/否） | I2: 覆盖区域（以“县区-乡镇或街道办-村委会或社区-村或小区”的地址层级进行公示） | J2: 变压器容量 | K2: 所属供电组
A3: 1 | B3: BH-打苴社区-大寨台变 | C3: 10kV | D3: 12.32 | E3: 31.15 | F3: 轻载 | G3: =(J3-J3*D3/100)*0.9 -> 315.65 | H3: 否 | I3: 打苴社区 | J3: 400 | K3: 北海供电组
A4: 2 | B4: BH-打苴社区-邓家寨台变 | C4: 10kV | D4: 8.32 | E4: 37.84 | F4: 轻载 | G4: =(J4-J4*D4/100)*0.9 -> 206.28 | H4: 否 | I4: 打苴社区 | J4: 250 | K4: 北海供电组
A5: 3 | B5: BH-打苴社区-东山台变 | C5: 10kV | D5: 8.78 | E5: 21.87 | F5: 轻载 | G5: 328.39 | H5: 否 | I5: 打苴社区 | J5: 400 | K5: 北海供电组
A6: 4 | B6: BH-打苴社区-横寨台变 | C6: 10kV | D6: 13.59 | E6: 31.97 | F6: 轻载 | G6: 244.97 | H6: 否 | I6: 打苴社区 | J6: 315 | K6: 北海供电组
A7: 5 | B7: BH-打苴社区-李家寨台变 | C7: 10kV | D7: 6.99 | E7: 22.13 | F7: 轻载 | G7: 167.42 | H7: 否 | I7: 打苴社区 | J7: 200 | K7: 北海供电组
A8: 6 | B8: BH-打苴社区-龙桥头台变 | C8: 10kV | D8: 4.78 | E8: 25.68 | F8: 轻载 | G8: 68.56 | H8: 否 | I8: 打苴社区 | J8: 80 | K8: 北海供电组
A9: 7 | B9: BH-打苴社区-马家源台变 | C9: 10kV | D9: 6.72 | E9: 29.3 | F9: 轻载 | G9: 67.16 | H9: 否 | I9: 打苴社区 | J9: 80 | K9: 北海供电组
A10: 8 | B10: BH-打苴社区-孙家寨台变 | C10: 10kV | D10: 10.48 | E10: 30.06 | F10: 轻载 | G10: 100.71 | H10: 否 | I10: 打苴社区 | J10: 125 | K10: 北海供电组
A11: 9 | B11: BH-打苴社区-塘子河1#台变 | C11: 10kV | D11: 18.06 | E11: 48.13 | F11: 轻载 | G11: 92.18 | H11: 否 | I11: 打苴社区 | J11: 125 | K11: 北海供电组
A12: 10 | B12: BH-打苴社区-塘子河2#台变 | C12: 10kV | D12: 3.94 | E12: 30.15 | F12: 轻载 | G12: 43.23 | H12: 否 | I12: 打苴社区 | J12: 50 | K12: 北海供电组
A13: 11 | B13: BH-打苴社区-徐家湾番家寨台变 | C13: 10kV | D13: 7.27 | E13: 22.86 | F13: 轻载 | G13: 208.64 | H13: 否 | I13: 打苴社区 | J13: 250 | K13: 北海供电组
A14: 12 | B14: BH-打苴社区-杨家湾台变 | C14: 10kV | D14: 10.75 | E14: 23.26 | F14: 轻载 | G14: 160.65 | H14: 否 | I14: 打苴社区 | J14: 200 | K14: 北海供电组
A15: 13 | B15: BH-凤山社区-后屯台变 | C15: 10kV | D15: 10.94 | E15: 26.86 | F15: 轻载 | G15: 320.62 | H15: 否 | I15: 凤山社区 | J15: 400 | K15: 北海供电组
A16: 14 | B16: BH-凤山社区-沙帽山台变 | C16: 10kV | D16: 10.03 | E16: 33.95 | F16: 轻载 | G16: 80.97 | H16: 否 | I16: 凤山社区 | J16: 100 | K16: 北海供电组
A17: 15 | B17: BH-凤山社区-小尹家湾台变 | C17: 10kV | D17: 7.6 | E17: 22.02 | F17: 轻载 | G17: 133.06 | H17: 否 | I17: 凤山社区 | J17: 160 | K17: 北海供电组
A18: 16 | B18: BH-富裕社区-白寺台变 | C18: 10kV | D18: 10.73 | E18: 41.74 | F18: 轻载 | G18: 321.37 | H18: 否 | I18: 富裕社区 | J18: 400 | K18: 北海供电组
A19: 17 | B19: BH-富裕社区-大井台变 | C19: 10kV | D19: 9.78 | E19: 27.7 | F19: 轻载 | G19: 255.77 | H19: 否 | I19: 富裕社区 | J19: 315 | K19: 北海供电组
A20: 18 | B20: BH-富裕社区-大石板尹家小河台变 | C20: 10kV | D20: 25.66 | E20: 57.63 | F20: 经济运行 | G20: 210.75 | H20: 否 | I20: 富裕社区 | J20: 315 | K20: 北海供电组
A21: 19 | B21: BH-富裕社区-范、赵、平、杨台变 | C21: 10kV | D21: 13.97 | E21: 28.59 | F21: 轻载 | G21: 243.90 | H21: 否 | I21: 富裕社区 | J21: 315 | K21: 北海供电组
A22: 20 | B22: BH-富裕社区-坡头坡脚台变 | C22: 10kV | D22: 6.33 | E22: 21.6 | F22: 轻载 | G22: 210.76 | H22: 否 | I22: 富裕社区 | J22: 250 | K22: 北海供电组
A23: 21 | B23: BH-富裕社区-秋厂台变 | C23: 10kV | D23: 15.24 | E23: 39.72 | F23: 轻载 | G23: 152.57 | H23: 否 | I23: 富裕社区 | J23: 200 | K23: 北海供电组
A24: 22 | B24: BH-富裕社区-小井台变 | C24: 10kV | D24: 8.45 | E24: 22.17 | F24: 轻载 | G24: 205.99 | H24: 否 | I24: 富裕社区 | J24: 250 | K24: 北海供电组
A25: 23 | B25: BH-岗峨社区-孟家寨台变 | C25: 10kV | D25: 16.71 | E25: 37.17 | F25: 轻载 | G25: 236.13 | H25: 否 | I25: 岗峨社区 | J25: 315 | K25: 北海供电组
A26: 24 | B26: BH-岗峨社区-挑坡台变 | C26: 10kV | D26: 10.44 | E26: 25.68 | F26: 轻载 | G26: 253.90 | H26: 否 | I26: 岗峨社区 | J26: 315 | K26: 北海供电组
A27: 25 | B27: BH-岗峨社区-新寨台变 | C27: 10kV | D27: 11.15 | E27: 33.59 | F27: 轻载 | G27: 63.97 | H27: 否 | I27: 岗峨社区 | J27: 80 | K27: 北海供电组
A28: 26 | B28: BH-岗峨社区-中村台变 | C28: 10kV | D28: 12.23 | E28: 31 | F28: 轻载 | G28: 157.99 | H28: 否 | I28: 岗峨社区 | J28: 200 | K28: 北海供电组
A29: 27 | B29: BH-高原社区-龙塘台变 | C29: 10kV | D29: 12.42 | E29: 56.42 | F29: 轻载 | G29: 23.65 | H29: 否 | I29: 高原社区 | J29: 30 | K29: 北海供电组
A30: 28 | B30: BH-花园村-杜家湾台变 | C30: 10kV | D30: 7.58 | E30: 18.91 | F30: 轻载 | G30: 262.01 | H30: 否 | I30: 花园村 | J30: 315 | K30: 北海供电组
A31: 29 | B31: BH-花园村-康何台变 | C31: 10kV | D31: 8.08 | E31: 21.8 | F31: 轻载 | G31: 165.46 | H31: 否 | I31: 花园村 | J31: 200 | K31: 北海供电组
A32: 30 | B32: BH-花园村-麻梨山台变 | C32: 10kV | D32: 10.96 | E32: 20.08 | F32: 轻载 | G32: 252.43 | H32: 否 | I32: 花园村 | J32: 315 | K32: 北海供电组
A33: 31 | B33: BH-花园村-柞木树台变 | C33: 10kV | D33: 8.52 | E33: 22.58 | F33: 轻载 | G33: 164.66 | H33: 否 | I33: 花园村 | J33: 200 | K33: 北海供电组
A34: 32 | B34: BH-花园村-直站岭台变 | C34: 10kV | D34: 5.69 | E34: 30.14 | F34: 轻载 | G34: 67.90 | H34: 否 | I34: 花园村 | J34: 80 | K34: 北海供电组
A35: 33 | B35: BH-双海社区-柴家营台变 | C35: 10kV | D35: 9.76 | E35: 26.75 | F35: 轻载 | G35: 324.86 | H35: 否 | I35: 双海社区 | J35: 400 | K35: 北海供电组
A36: 34 | B36: BH-双海社区-海口1#台变 | C36: 10kV | D36: 13.56 | E36: 30.25 | F36: 轻载 | G36: 311.18 | H36: 否 | I36: 双海社区 | J36: 400 | K36: 北海供电组
A37: 35 | B37: BH-双海社区-海口2#台变 | C37: 10kV | D37: 8.22 | E37: 22.2 | F37: 轻载 | G37: 330.41 | H37: 否 | I37: 双海社区 | J37: 400 | K37: 北海供电组
A38: 36 | B38: BH-双海社区-邵家营1#台变 | C38: 10kV | D38: 15.87 | E38: 52.97 | F38: 轻载 | G38: 302.87 | H38: 否 | I38: 双海社区 | J38: 400 | K38: 北海供电组
A39: 37 | B39: BH-双海社区-邵家营2#台变 | C39: 10kV | D39: 19.96 | E39: 56.79 | F39: 轻载 | G39: 57.63 | H39: 否 | I39: 双海社区 | J39: 80 | K39: 北海供电组
A40: 38 | B40: BH-双海社区-水沟台变 | C40: 10kV | D40: 13.78 | E40: 34.73 | F40: 轻载 | G40: 310.39 | H40: 否 | I40: 双海社区 | J40: 400 | K40: 北海供电组
A41: 39 | B41: BH-双海社区-赵家岳家台变 | C41: 10kV | D41: 8.5 | E41: 28.78 | F41: 轻载 | G41: 329.40 | H41: 否 | I41: 双海社区 | J41: 400 | K41: 北海供电组
A42: 40 | B42: BH-双坡村-大元塘台变 | C42: 10kV | D42: 8.15 | E42: 56.08 | F42: 轻载 | G42: 41.33 | H42: 否 | I42: 双坡村 | J42: 50 | K42: 北海供电组
A43: 41 | B43: BH-双坡村-麻厂安置地台变 | C43: 10kV | D43: 6.24 | E43: 70.13 | F43: 轻载 | G43: 25.32 | H43: 否 | I43: 双坡村 | J43: 30 | K43: 北海供电组
A44: 42 | B44: BH-双坡村-麻厂台变 | C44: 10kV | D44: 1.79 | E44: 5.53 | F44: 轻载 | G44: 141.42 | H44: 否 | I44: 双坡村 | J44: 160 | K44: 北海供电组
A45: 43 | B45: BH-双坡村-蒲箐台变 | C45: 10kV | D45: 9.17 | E45: 32.15 | F45: 轻载 | G45: 130.80 | H45: 否 | I45: 双坡村 | J45: 160 | K45: 北海供电组
A46: 44 | B46: BH-双坡村-双坡台变 | C46: 10kV | D46: 8.19 | E46: 29.22 | F46: 轻载 | G46: 132.21 | H46: 否 | I46: 双坡村 | J46: 160 | K46: 北海供电组
A47: 45 | B47: BH-双坡村-新寨台变 | C47: 10kV | D47: 3.92 | E47: 21.46 | F47: 轻载 | G47: 43.24 | H47: 否 | I47: 双坡村 | J47: 50 | K47: 北海供电组
A48: 46 | B48: BH-下村社区-北海下村台变 | C48: 10kV | D48: 10.14 | E48: 29.39 | F48: 轻载 | G48: 254.75 | H48: 否 | I48: 下村社区 | J48: 315 | K48: 北海供电组
A49: 47 | B49: BH-下村社区-杜家湾台变 | C49: 10kV | D49: 11.95 | E49: 34.41 | F49: 轻载 | G49: 158.49 | H49: 否 | I49: 下村社区 | J49: 200 | K49: 北海供电组
A50: 48 | B50: BH-下村社区-后所营台变 | C50: 10kV | D50: 21.82 | E50: 51.86 | F50: 轻载 | G50: 140.72 | H50: 否 | I50: 下村社区 | J50: 200 | K50: 北海供电组
A51: 49 | B51: BH-下村社区-上村台变 | C51: 10kV | D51: 7.51 | E51: 45.37 | F51: 轻载 | G51: 83.24 | H51: 否 | I51: 下村社区 | J51: 100 | K51: 北海供电组
A52: 50 | B52: BH-下村社区-中村台变 | C52: 10kV | D52: 8.46 | E52: 29.36 | F52: 轻载 | G52: 329.54 | H52: 否 | I52: 下村社区 | J52: 400 | K52: 北海供电组
A53: 51 | B53: BH-新乐社区-代家寨台变 | C53: 10kV | D53: 12.14 | E53: 34.88 | F53: 轻载 | G53: 158.15 | H53: 否 | I53: 新乐社区 | J53: 200 | K53: 北海供电组
A54: 52 | B54: BH-新乐社区-番徐刘马段家寨台变 | C54: 10kV | D54: 15.53 | E54: 48.24 | F54: 轻载 | G54: 239.47 | H54: 否 | I54: 新乐社区 | J54: 315 | K54: 北海供电组
A55: 53 | B55: BH-新乐社区-沟下台变 | C55: 10kV | D55: 6.46 | E55: 23.54 | F55: 轻载 | G55: 168.37 | H55: 否 | I55: 新乐社区 | J55: 200 | K55: 北海供电组
A56: 54 | B56: BH-新乐社区-郭家营台变 | C56: 10kV | D56: 17.36 | E56: 58.81 | F56: 轻载 | G56: 74.38 | H56: 否 | I56: 新乐社区 | J56: 100 | K56: 北海供电组
A57: 55 | B57: BH-新乐社区-龙家营台变 | C57: 10kV | D57: 13.07 | E57: 41.48 | F57: 轻载 | G57: 246.45 | H57: 否 | I57: 新乐社区 | J57: 315 | K57: 北海供电组
A58: 56 | B58: BH-新乐社区-玛御谷清芷园1#箱变-DW | C58: 10kV | D58: 4.89 | E58: 11.41 | F58: 轻载 | G58: 684.79 | H58: 否 | I58: 新乐社区 | J58: 800 | K58: 北海供电组
A59: 57 | B59: BH-新乐社区-玛御谷清芷园2#箱变-DW | C59: 10kV | D59: 5.69 | E59: 13.35 | F59: 轻载 | G59: 534.74 | H59: 否 | I59: 新乐社区 | J59: 630 | K59: 北海供电组
A60: 58 | B60: BH-新乐社区-玛御谷清芷园3#箱变-DW | C60: 10kV | D60: 3.9 | E60: 9.54 | F60: 轻载 | G60: 432.45 | H60: 否 | I60: 新乐社区 | J60: 500 | K60: 北海供电组
A61: 59 | B61: BH-新乐社区-清河台变 | C61: 10kV | D61: 8.82 | E61: 30.46 | F61: 轻载 | G61: 82.06 | H61: 否 | I61: 新乐社区 | J61: 100 | K61: 北海供电组
A62: 60 | B62: BH-新乐社区-新乐街1#台变 | C62: 10kV | D62: 29.67 | E62: 60.74 | F62: 经济运行 | G62: 199.39 | H62: 否 | I62: 新乐社区 | J62: 315 | K62: 北海供电组
A63: 61 | B63: BH-新乐社区-新乐街2#台变 | C63: 10kV | D63: 33.56 | E63: 97.2 | F63: 经济运行 | G63: 188.36 | H63: 否 | I63: 新乐社区 | J63: 315 | K63: 北海供电组
A64: 62 | B64: BH-新乐社区-秧田洼台变 | C64: 10kV | D64: 27.26 | E64: 74.51 | F64: 经济运行 | G64: 130.93 | H64: 否 | I64: 新乐社区 | J64: 200 | K64: 北海供电组
A65: 63 | B65: BH-盈河村-岔路台变 | C65: 10kV | D65: 8.58 | E65: 46.81 | F65: 轻载 | G65: 259.18 | H65: 否 | I65: 盈河村 | J65: 315 | K65: 北海供电组
A66: 64 | B66: BH-盈河村-大寨台变 | C66: 10kV | D66: 13.31 | E66: 32.72 | F66: 轻载 | G66: 245.77 | H66: 否 | I66: 盈河村 | J66: 315 | K66: 北海供电组
A67: 65 | B67: BH-盈河村-汉坝台变 | C67: 10kV | D67: 7.99 | E67: 30.16 | F67: 轻载 | G67: 103.51 | H67: 否 | I67: 盈河村 | J67: 125 | K67: 北海供电组
A68: 66 | B68: BH-盈河村-河头台变 | C68: 10kV | D68: 10.37 | E68: 37.82 | F68: 轻载 | G68: =(J68-J68*D68/100)*0.9 -> 64.53 | H68: 否 | I68: 盈河村 | J68: 80 | K68: 北海供电组
A69: 67 | B69: BH-盈河村-街子台变 | C69: 10kV | D69: 23.4 | E69: 102.06 | F69: 经济运行 | G69: 55.15 | H69: 否 | I69: 盈河村 | J69: 80 | K69: 北海供电组
A70: 68 | B70: BH-盈河村-酒寨台变 | C70: 10kV | D70: 13.19 | E70: 35.39 | F70: 轻载 | G70: 195.32 | H70: 否 | I70: 盈河村 | J70: 250 | K70: 北海供电组
A71: 69 | B71: BH-盈河村-李家寨台变 | C71: 10kV | D71: 15.27 | E71: 50.91 | F71: 轻载 | G71: 95.32 | H71: 否 | I71: 盈河村 | J71: 125 | K71: 北海供电组
A72: 70 | B72: BH-盈河村-新红台变 | C72: 10kV | D72: 15.24 | E72: 52.6 | F72: 轻载 | G72: 95.36 | H72: 否 | I72: 盈河村 | J72: 125 | K72: 北海供电组
A73: 71 | B73: BH-盈河村-澡塘台变 | C73: 10kV | D73: 7.33 | E73: 19.83 | F73: 轻载 | G73: 166.81 | H73: 否 | I73: 盈河村 | J73: 200 | K73: 北海供电组
A74: 72 | B74: BH-盈水社区-村尾1#台变 | C74: 10kV | D74: 32 | E74: 107.36 | F74: 经济运行 | G74: 61.20 | H74: 否 | I74: 盈水社区 | J74: 100 | K74: 北海供电组
A75: 73 | B75: BH-盈水社区-村尾2#台变 | C75: 10kV | D75: 10.73 | E75: 25.92 | F75: 轻载 | G75: 253.08 | H75: 否 | I75: 盈水社区 | J75: 315 | K75: 北海供电组
A76: 74 | B76: BH-盈水社区-下河村2#台变 | C76: 10kV | D76: 7.33 | E76: 18.29 | F76: 轻载 | G76: 262.72 | H76: 否 | I76: 盈水社区 | J76: 315 | K76: 北海供电组
A77: 75 | B77: BH-油灯社区-草坝街台变 | C77: 10kV | D77: 27.37 | E77: 60.36 | F77: 经济运行 | G77: 205.91 | H77: 否 | I77: 油灯社区 | J77: 315 | K77: 北海供电组
A78: 76 | B78: BH-油灯社区-洞觉村台变 | C78: 10kV | D78: 13.42 | E78: 32.1 | F78: 轻载 | G78: 311.69 | H78: 否 | I78: 油灯社区 | J78: 400 | K78: 北海供电组
A79: 77 | B79: BH-油灯社区-油灯庄1#台变 | C79: 10kV | D79: 13.47 | E79: 38.07 | F79: 轻载 | G79: 245.31 | H79: 否 | I79: 油灯社区 | J79: 315 | K79: 北海供电组
A80: 78 | B80: BH-油灯社区-油灯庄2#台变 | C80: 10kV | D80: 12.17 | E80: 28.08 | F80: 轻载 | G80: 249.00 | H80: 否 | I80: 油灯社区 | J80: 315 | K80: 北海供电组
A81: 79 | B81: BH-竹坝村-黄姜地台变 | C81: 10kV | D81: 8.89 | E81: 33.41 | F81: 轻载 | G81: 24.60 | H81: 否 | I81: 竹坝村 | J81: 30 | K81: 北海供电组
A82: 80 | B82: BH-竹坝村-乃撒变台 | C82: 10kV | D82: 4.89 | E82: 26.43 | F82: 轻载 | G82: 85.60 | H82: 否 | I82: 竹坝村 | J82: 100 | K82: 北海供电组
A83: 81 | B83: BH-竹坝村-石老虎台变 | C83: 10kV | D83: 9.06 | E83: 34.94 | F83: 轻载 | G83: 65.48 | H83: 否 | I83: 竹坝村 | J83: 80 | K83: 北海供电组
A84: 82 | B84: CQS-大寨村-大寨1#台变 | C84: 10kV | D84: 12.72 | E84: 34.78 | F84: 轻载 | G84: 196.38 | H84: 否 | I84: 大寨村 | J84: 250 | K84: 清水供电组
A85: 83 | B85: CQS-大寨村-大寨4#台变 | C85: 10kV | D85: 8.75 | E85: 34.87 | F85: 轻载 | G85: 258.69 | H85: 否 | I85: 大寨村 | J85: 315 | K85: 清水供电组
A86: 84 | B86: CQS-大寨村-沙坡1#台变 | C86: 10kV | D86: 12.18 | E86: 32.41 | F86: 轻载 | G86: 197.60 | H86: 否 | I86: 大寨村 | J86: 250 | K86: 清水供电组
A87: 85 | B87: CQS-大寨村-沙坡2#台变 | C87: 10kV | D87: 9 | E87: 25.4 | F87: 轻载 | G87: 131.04 | H87: 否 | I87: 大寨村 | J87: 160 | K87: 清水供电组
A88: 86 | B88: CQS-荆陈村-陈家寨1#台变 | C88: 10kV | D88: 11.76 | E88: 36.26 | F88: 轻载 | G88: 127.07 | H88: 否 | I88: 荆陈村 | J88: 160 | K88: 清水供电组
A89: 87 | B89: CQS-荆陈村-陈家寨2#台变 | C89: 10kV | D89: 8.06 | E89: 26.7 | F89: 轻载 | G89: 132.39 | H89: 否 | I89: 荆陈村 | J89: 160 | K89: 清水供电组
A90: 88 | B90: CQS-荆陈村-陈家寨3#台变 | C90: 10kV | D90: 6.76 | E90: 22.29 | F90: 轻载 | G90: 264.34 | H90: 否 | I90: 荆陈村 | J90: 315 | K90: 清水供电组
A91: 89 | B91: CQS-荆陈村-荆竹寨1#台变 | C91: 10kV | D91: 7.73 | E91: 27.18 | F91: 轻载 | G91: 132.87 | H91: 否 | I91: 荆陈村 | J91: 160 | K91: 清水供电组
A92: 90 | B92: CQS-荆陈村-荆竹寨2#台变 | C92: 10kV | D92: 7.29 | E92: 23 | F92: 轻载 | G92: 262.83 | H92: 否 | I92: 荆陈村 | J92: 315 | K92: 清水供电组
A93: 91 | B93: CQS-荆陈村-朱星街集镇台变 | C93: 10kV | D93: 17.72 | E93: 43.34 | F93: 轻载 | G93: 148.10 | H93: 否 | I93: 荆陈村 | J93: 200 | K93: 清水供电组
A94: 92 | B94: CQS-良盈村-芭蕉关1#台变 | C94: 10kV | D94: 21.97 | E94: 62.44 | F94: 轻载 | G94: 112.36 | H94: 否 | I94: 良盈村 | J94: 160 | K94: 清水供电组
A95: 93 | B95: CQS-良盈村-芭蕉关2#台变 | C95: 10kV | D95: 9.44 | E95: 29.69 | F95: 轻载 | G95: 163.01 | H95: 否 | I95: 良盈村 | J95: 200 | K95: 清水供电组
A96: 94 | B96: CQS-良盈村-半个山台变 | C96: 10kV | D96: 8.56 | E96: 30.04 | F96: 轻载 | G96: 102.87 | H96: 否 | I96: 良盈村 | J96: 125 | K96: 清水供电组
A97: 95 | B97: CQS-良盈村-蔡家寨老寨子台变 | C97: 10kV | D97: 9.25 | E97: 75.81 | F97: 经济运行 | G97: 40.84 | H97: 否 | I97: 良盈村 | J97: 50 | K97: 清水供电组
A98: 96 | B98: CQS-良盈村-蔡家寨新寨子台变 | C98: 10kV | D98: 10.08 | E98: 36.51 | F98: 轻载 | G98: 64.74 | H98: 否 | I98: 良盈村 | J98: 80 | K98: 清水供电组
A99: 97 | B99: CQS-良盈村-谷家寨台变 | C99: 10kV | D99: 6.09 | E99: 23.73 | F99: 轻载 | G99: 211.30 | H99: 否 | I99: 良盈村 | J99: 250 | K99: 清水供电组
A100: 98 | B100: CQS-良盈村-蒋家营台变 | C100: 10kV | D100: 0.32 | E100: 5.85 | F100: 轻载 | G100: 71.77 | H100: 否 | I100: 良盈村 | J100: 80 | K100: 清水供电组
A101: 99 | B101: CQS-良盈村-老洋河台变 | C101: 10kV | D101: 9.82 | E101: 38.64 | F101: 轻载 | G101: 162.32 | H101: 否 | I101: 良盈村 | J101: 200 | K101: 清水供电组
A102: 100 | B102: CQS-良盈村-良盈村委会台变 | C102: 10kV | D102: 13.99 | E102: 90.9 | F102: 轻载 | G102: 96.76 | H102: 否 | I102: 良盈村 | J102: 125 | K102: 清水供电组
A103: 101 | B103: CQS-良盈村-蔺家寨1#台变 | C103: 10kV | D103: 12.46 | E103: 43.5 | F103: 轻载 | G103: 63.03 | H103: 否 | I103: 良盈村 | J103: 80 | K103: 清水供电组
A104: 102 | B104: CQS-良盈村-蔺家寨2#台变 | C104: 10kV | D104: 7.49 | E104: 28.19 | F104: 轻载 | G104: 166.52 | H104: 否 | I104: 良盈村 | J104: 200 | K104: 清水供电组
A105: 103 | B105: CQS-良盈村-蔺家寨3#台变 | C105: 10kV | D105: 9.56 | E105: 34.74 | F105: 轻载 | G105: 203.49 | H105: 否 | I105: 良盈村 | J105: 250 | K105: 清水供电组
A106: 104 | B106: CQS-良盈村-热海新村台变 | C106: 10kV | D106: 29.53 | E106: 75.02 | F106: 经济运行 | G106: 50.74 | H106: 否 | I106: 良盈村 | J106: 80 | K106: 清水供电组
A107: 105 | B107: CQS-清水村-村委会台变 | C107: 10kV | D107: 22.79 | E107: 73.92 | F107: 轻载 | G107: 111.18 | H107: 否 | I107: 清水村 | J107: 160 | K107: 清水供电组
A108: 106 | B108: CQS-清水村-湖东新墙台变 | C108: 10kV | D108: 16.82 | E108: 46.81 | F108: 轻载 | G108: 187.16 | H108: 否 | I108: 清水村 | J108: 250 | K108: 清水供电组
A109: 107 | B109: CQS-清水村-老街子台变 | C109: 10kV | D109: 13.52 | E109: 30 | F109: 轻载 | G109: 245.17 | H109: 否 | I109: 清水村 | J109: 315 | K109: 清水供电组
A110: 108 | B110: CQS-清水村-老寨子台变 | C110: 10kV | D110: 14.2 | E110: 41.17 | F110: 轻载 | G110: 123.55 | H110: 否 | I110: 清水村 | J110: 160 | K110: 清水供电组
A111: 109 | B111: CQS-清水村-刘家寨台变 | C111: 10kV | D111: 21.55 | E111: 48.57 | F111: 轻载 | G111: 56.48 | H111: 否 | I111: 清水村 | J111: 80 | K111: 清水供电组
A112: 110 | B112: CQS-清水村-罗所冲下寨台变 | C112: 10kV | D112: 9.41 | E112: 21.38 | F112: 轻载 | G112: 256.82 | H112: 否 | I112: 清水村 | J112: 315 | K112: 清水供电组
A113: 111 | B113: CQS-清水村-罗所冲新寨台变 | C113: 10kV | D113: 17.62 | E113: 49.73 | F113: 轻载 | G113: 92.68 | H113: 否 | I113: 清水村 | J113: 125 | K113: 清水供电组
A114: 112 | B114: CQS-清水村-罗所冲中寨台变 | C114: 10kV | D114: 36.58 | E114: 82.41 | F114: 经济运行 | G114: 114.16 | H114: 否 | I114: 清水村 | J114: 200 | K114: 清水供电组
A115: 113 | B115: CQS-清水村-苏家营1#台变 | C115: 10kV | D115: 15.09 | E115: 29.37 | F115: 轻载 | G115: 240.72 | H115: 否 | I115: 清水村 | J115: 315 | K115: 清水供电组
A116: 114 | B116: CQS-清水村-苏家营2#台变 | C116: 10kV | D116: 20.14 | E116: 56.75 | F116: 轻载 | G116: 57.50 | H116: 否 | I116: 清水村 | J116: 80 | K116: 清水供电组
A117: 115 | B117: CQS-三家村-冯家营台变 | C117: 10kV | D117: 12.35 | E117: 26.24 | F117: 轻载 | G117: 315.54 | H117: 否 | I117: 三家村 | J117: 400 | K117: 清水供电组
A118: 116 | B118: CQS-三家村-何家寨台变 | C118: 10kV | D118: 8.21 | E118: 30.9 | F118: 轻载 | G118: 132.18 | H118: 否 | I118: 三家村 | J118: 160 | K118: 清水供电组
A119: 117 | B119: CQS-三家村-蛮磊台变 | C119: 10kV | D119: 7 | E119: 29.39 | F119: 轻载 | G119: 83.70 | H119: 否 | I119: 三家村 | J119: 100 | K119: 清水供电组
A120: 118 | B120: CQS-三家村-三家村寨台变 | C120: 10kV | D120: 14.78 | E120: 34.54 | F120: 轻载 | G120: 306.79 | H120: 否 | I120: 三家村 | J120: 400 | K120: 清水供电组
A121: 119 | B121: CQS-三家村-中寨台变 | C121: 10kV | D121: 15.95 | E121: 49.36 | F121: 轻载 | G121: 189.11 | H121: 否 | I121: 三家村 | J121: 250 | K121: 清水供电组
A122: 120 | B122: CQS-驼峰村-栗柴坝大坡社台变 | C122: 10kV | D122: 10.93 | E122: 32.18 | F122: 轻载 | G122: 100.20 | H122: 否 | I122: 驼峰村 | J122: 125 | K122: 清水供电组
A123: 121 | B123: CQS-驼峰村-栗柴坝大寨台变 | C123: 10kV | D123: 11.99 | E123: 35.42 | F123: 轻载 | G123: 158.42 | H123: 否 | I123: 驼峰村 | J123: 200 | K123: 清水供电组
A124: 122 | B124: CQS-驼峰村-栗柴坝许上许下台变 | C124: 10kV | D124: 12.51 | E124: 47.75 | F124: 轻载 | G124: 157.48 | H124: 否 | I124: 驼峰村 | J124: 200 | K124: 清水供电组
A125: 123 | B125: CQS-驼峰村-瞿家营1至3社台变 | C125: 10kV | D125: 4.9 | E125: 19.59 | F125: 轻载 | G125: 171.18 | H125: 否 | I125: 驼峰村 | J125: 200 | K125: 清水供电组
A126: 124 | B126: CQS-驼峰村-瞿家营4、5社台变 | C126: 10kV | D126: 7.08 | E126: 25.35 | F126: 轻载 | G126: 167.26 | H126: 否 | I126: 驼峰村 | J126: 200 | K126: 清水供电组
A127: 125 | B127: CQS-驼峰村-瞿家营6社台变 | C127: 10kV | D127: 7.26 | E127: 28.87 | F127: 轻载 | G127: 166.93 | H127: 否 | I127: 驼峰村 | J127: 200 | K127: 清水供电组
A128: 126 | B128: CQS-驼峰村-瞿家营槽子口台变 | C128: 10kV | D128: 10.21 | E128: 72.73 | F128: 轻载 | G128: 129.30 | H128: 否 | I128: 驼峰村 | J128: 160 | K128: 清水供电组
A129: 127 | B129: CQS-驼峰村-水坝田台变 | C129: 10kV | D129: 7.5 | E129: 35.79 | F129: 轻载 | G129: 41.63 | H129: 否 | I129: 驼峰村 | J129: 50 | K129: 清水供电组
A130: 128 | B130: CQS-驼峰村-文兴社台变 | C130: 10kV | D130: 5.97 | E130: 19.85 | F130: 轻载 | G130: 211.57 | H130: 否 | I130: 驼峰村 | J130: 250 | K130: 清水供电组
A131: 129 | B131: CQS-驼峰村-虞家营新村1#台变 | C131: 10kV | D131: 16.79 | E131: 40.18 | F131: 轻载 | G131: 187.22 | H131: 否 | I131: 驼峰村 | J131: 250 | K131: 清水供电组
A132: 130 | B132: CQS-驼峰村-虞家营新村2#台变 | C132: 10kV | D132: 5.06 | E132: 20.53 | F132: 轻载 | G132: =(J132-J132*D132/100)*0.9 -> 269.15 | H132: 否 | I132: 驼峰村 | J132: 315 | K132: 清水供电组
A133: 131 | B133: CQ-宝峰社区-5#地块1#(南)箱变 | C133: 10kV | D133: 16.51 | E133: 31.52 | F133: 轻载 | G133: 601.13 | H133: 否 | I133: 宝峰社区 | J133: 800 | K133: 城区供电组
A134: 132 | B134: CQ-宝峰社区-碧桂园一期1#箱变-DW | C134: 10kV | D134: 7.18 | E134: 17.62 | F134: 轻载 | G134: 1044.23 | H134: 否 | I134: 宝峰社区 | J134: 1250 | K134: 城区供电组
A135: 133 | B135: CQ-宝峰社区-碧桂园一期2#箱变-DW | C135: 10kV | D135: 7.64 | E135: 15.85 | F135: 轻载 | G135: 1039.05 | H135: 否 | I135: 宝峰社区 | J135: 1250 | K135: 城区供电组
A136: 134 | B136: CQ-宝峰社区-公租房6#地块箱变 | C136: 10kV | D136: 22.48 | E136: 44.45 | F136: 经济运行 | G136: 348.84 | H136: 否 | I136: 宝峰社区 | J136: 500 | K136: 城区供电组
A137: 135 | B137: CQ-宝峰社区-公租房8#地块1#箱变 | C137: 10kV | D137: 13.38 | E137: 32.74 | F137: 轻载 | G137: 623.66 | H137: 否 | I137: 宝峰社区 | J137: 800 | K137: 城区供电组
A138: 136 | B138: CQ-宝峰社区-公租房8#地块2#箱变 | C138: 10kV | D138: 11.6 | E138: 28.95 | F138: 轻载 | G138: 636.48 | H138: 否 | I138: 宝峰社区 | J138: 800 | K138: 城区供电组
A139: 137 | B139: CQ-宝峰社区-公租房8#地块3#箱变 | C139: 10kV | D139: 10.88 | E139: 23.8 | F139: 轻载 | G139: 641.66 | H139: 否 | I139: 宝峰社区 | J139: 800 | K139: 城区供电组
A140: 138 | B140: CQ-宝峰社区-公租房8#地块4#箱变 | C140: 10kV | D140: 7.31 | E140: 19.17 | F140: 轻载 | G140: 667.37 | H140: 否 | I140: 宝峰社区 | J140: 800 | K140: 城区供电组
A141: 139 | B141: CQ-宝峰社区-郭家寨台变 | C141: 10kV | D141: 34.18 | E141: 70.69 | F141: 经济运行 | G141: 236.95 | H141: 否 | I141: 宝峰社区 | J141: 400 | K141: 城区供电组
A142: 140 | B142: CQ-宝峰社区-海和苑箱变 | C142: 10kV | D142: 4.55 | E142: 10.72 | F142: 轻载 | G142: 541.20 | H142: 否 | I142: 宝峰社区 | J142: 630 | K142: 城区供电组
A143: 141 | B143: CQ-宝峰社区-核桃园丁子寨台变 | C143: 10kV | D143: 19.27 | E143: 52.8 | F143: 轻载 | G143: 181.64 | H143: 否 | I143: 宝峰社区 | J143: 250 | K143: 城区供电组
A144: 142 | B144: CQ-宝峰社区-卢家寨台变 | C144: 10kV | D144: 32.14 | E144: 79.21 | F144: 经济运行 | G144: 152.69 | H144: 否 | I144: 宝峰社区 | J144: 250 | K144: 城区供电组
A145: 143 | B145: CQ-宝峰社区-人民医院公租房1#箱变-DW | C145: 10kV | D145: 8.31 | E145: 20.18 | F145: 轻载 | G145: 660.17 | H145: 否 | I145: 宝峰社区 | J145: 800 | K145: 城区供电组
A146: 144 | B146: CQ-宝峰社区-人民医院公租房2#箱变-DW | C146: 10kV | D146: 4.05 | E146: 10.76 | F146: 轻载 | G146: 690.84 | H146: 否 | I146: 宝峰社区 | J146: 800 | K146: 城区供电组
A147: 145 | B147: CQ-宝峰社区-西山坝公租房5号地(北)1#箱变 | C147: 10kV | D147: 12.66 | E147: 25.38 | F147: 轻载 | G147: 786.06 | H147: 否 | I147: 宝峰社区 | J147: 1000 | K147: 城区供电组
A148: 146 | B148: CQ-宝峰社区-西山坝公租房7#地块1#箱变 | C148: 10kV | D148: 11.04 | E148: 22.79 | F148: 轻载 | G148: 400.32 | H148: 否 | I148: 宝峰社区 | J148: 500 | K148: 城区供电组
A149: 147 | B149: CQ-宝峰社区-西山坝公租房二号地块1#箱变 | C149: 10kV | D149: 11.14 | E149: 24.16 | F149: 轻载 | G149: 799.74 | H149: 否 | I149: 宝峰社区 | J149: 1000 | K149: 城区供电组
A150: 148 | B150: CQ-宝峰社区-西山坝公租房二号地块2#箱变 | C150: 10kV | D150: 12.47 | E150: 25.21 | F150: 轻载 | G150: 787.77 | H150: 否 | I150: 宝峰社区 | J150: 1000 | K150: 城区供电组
A151: 149 | B151: CQ-宝峰社区-西山坝腾越镇公租房1#箱变-DW | C151: 10kV | D151: 7.66 | E151: 18.71 | F151: 轻载 | G151: 664.85 | H151: 否 | I151: 宝峰社区 | J151: 800 | K151: 城区供电组
A152: 150 | B152: CQ-宝峰社区-西山坝腾越镇公租房2#箱变-DW | C152: 10kV | D152: 8.8 | E152: 19.91 | F152: 轻载 | G152: 656.64 | H152: 否 | I152: 宝峰社区 | J152: 800 | K152: 城区供电组
A153: 151 | B153: CQ-宝峰社区-西山坝卫生局公租房箱变-DW | C153: 10kV | D153: 4.61 | E153: 12.71 | F153: 轻载 | G153: 686.81 | H153: 否 | I153: 宝峰社区 | J153: 800 | K153: 城区供电组
A154: 152 | B154: CQ-东山社区-金鹰地产欢乐湖一期箱变-DW | C154: 10kV | D154: 5.16 | E154: 11.79 | F154: 轻载 | G154: 682.85 | H154: 否 | I154: 东山社区 | J154: 800 | K154: 城区供电组
A155: 153 | B155: CQ-观音塘社区-434#线1#箱变 | C155: 10kV | D155: 30.77 | E155: 53.82 | F155: 经济运行 | G155: 311.54 | H155: 否 | I155: 观音塘社区 | J155: 500 | K155: 城区供电组
A156: 154 | B156: CQ-观音塘社区-434#线2#箱变 | C156: 10kV | D156: 36.73 | E156: 62.87 | F156: 经济运行 | G156: 455.54 | H156: 否 | I156: 观音塘社区 | J156: 800 | K156: 城区供电组
A157: 155 | B157: CQ-观音塘社区-边防检查站台变 | C157: 10kV | D157: 24.54 | E157: 56.2 | F157: 经济运行 | G157: 271.66 | H157: 否 | I157: 观音塘社区 | J157: 400 | K157: 城区供电组
A158: 156 | B158: CQ-观音塘社区-滨河小区3#桥台变 | C158: 10kV | D158: 22.96 | E158: 55.85 | F158: 轻载 | G158: 138.67 | H158: 否 | I158: 观音塘社区 | J158: 200 | K158: 城区供电组
A159: 157 | B159: CQ-观音塘社区-财神庙后安置地台变 | C159: 10kV | D159: 18.45 | E159: 35.62 | F159: 轻载 | G159: 231.19 | H159: 否 | I159: 观音塘社区 | J159: 315 | K159: 城区供电组
A160: 158 | B160: CQ-观音塘社区-大槽子台变 | C160: 10kV | D160: 23.71 | E160: 56.88 | F160: 经济运行 | G160: 274.64 | H160: 否 | I160: 观音塘社区 | J160: 400 | K160: 城区供电组
A161: 159 | B161: CQ-观音塘社区-大宽邑安置地箱变-DW | C161: 10kV | D161: 12.49 | E161: 25.32 | F161: 轻载 | G161: 496.18 | H161: 否 | I161: 观音塘社区 | J161: 630 | K161: 城区供电组
A162: 160 | B162: CQ-观音塘社区-东营老路2#台变 | C162: 10kV | D162: 32.78 | E162: 62.57 | F162: 经济运行 | G162: 190.57 | H162: 否 | I162: 观音塘社区 | J162: 315 | K162: 城区供电组
A163: 161 | B163: CQ-观音塘社区-东营老路台变 | C163: 10kV | D163: 21.94 | E163: 42.36 | F163: 轻载 | G163: 221.30 | H163: 否 | I163: 观音塘社区 | J163: 315 | K163: 城区供电组
A164: 162 | B164: CQ-观音塘社区-翡翠古镇1#箱变-DW | C164: 10kV | D164: 12.61 | E164: 25.2 | F164: 轻载 | G164: 393.26 | H164: 否 | I164: 观音塘社区 | J164: 500 | K164: 城区供电组
A165: 163 | B165: CQ-观音塘社区-翡翠古镇2#箱变-DW | C165: 10kV | D165: 14.2 | E165: 30.2 | F165: 轻载 | G165: 386.10 | H165: 否 | I165: 观音塘社区 | J165: 500 | K165: 城区供电组
A166: 164 | B166: CQ-观音塘社区-翡翠古镇3#箱变-DW | C166: 10kV | D166: 6.93 | E166: 16.68 | F166: 轻载 | G166: 418.82 | H166: 否 | I166: 观音塘社区 | J166: 500 | K166: 城区供电组
A167: 165 | B167: CQ-观音塘社区-公租房4#地块1#箱变 | C167: 10kV | D167: 10.16 | E167: 21.89 | F167: 轻载 | G167: 646.85 | H167: 否 | I167: 观音塘社区 | J167: 800 | K167: 城区供电组
A168: 166 | B168: CQ-观音塘社区-公租房4#地块2#箱变 | C168: 10kV | D168: 7.39 | E168: 19.85 | F168: 轻载 | G168: 666.79 | H168: 否 | I168: 观音塘社区 | J168: 800 | K168: 城区供电组
A169: 167 | B169: CQ-观音塘社区-古茶墅3~4号箱变 | C169: 10kV | D169: 2.19 | E169: 5.37 | F169: 轻载 | G169: 440.15 | H169: 否 | I169: 观音塘社区 | J169: 500 | K169: 城区供电组
A170: 168 | B170: CQ-观音塘社区-古茶墅假日庄园箱变-DW | C170: 10kV | D170: 3.8 | E170: 8.28 | F170: 轻载 | G170: 1082.25 | H170: 否 | I170: 观音塘社区 | J170: 1250 | K170: 城区供电组
A171: 169 | B171: CQ-观音塘社区-古茶墅小高层住宅1#箱变 | C171: 10kV | D171: 6.9 | E171: 15.22 | F171: 轻载 | G171: 418.95 | H171: 否 | I171: 观音塘社区 | J171: 500 | K171: 城区供电组
A172: 170 | B172: CQ-观音塘社区-古茶墅小高层住宅2#箱变 | C172: 10kV | D172: 6.68 | E172: 19.99 | F172: 轻载 | G172: 419.94 | H172: 否 | I172: 观音塘社区 | J172: 500 | K172: 城区供电组
A173: 171 | B173: CQ-观音塘社区-拐角楼安置地台变 | C173: 10kV | D173: 8.78 | E173: 20.87 | F173: 轻载 | G173: 328.39 | H173: 否 | I173: 观音塘社区 | J173: 400 | K173: 城区供电组
A174: 172 | B174: CQ-观音塘社区-关家巷台变 | C174: 10kV | D174: 30.11 | E174: 64.23 | F174: 经济运行 | G174: 198.14 | H174: 否 | I174: 观音塘社区 | J174: 315 | K174: 城区供电组
A175: 173 | B175: CQ-观音塘社区-观音塘安置地台变 | C175: 10kV | D175: 13.86 | E175: 27.96 | F175: 轻载 | G175: 310.10 | H175: 否 | I175: 观音塘社区 | J175: 400 | K175: 城区供电组
A176: 174 | B176: CQ-观音塘社区-观音塘打坟场台变 | C176: 10kV | D176: 15.82 | E176: 39.43 | F176: 轻载 | G176: 303.05 | H176: 否 | I176: 观音塘社区 | J176: 400 | K176: 城区供电组
A177: 175 | B177: CQ-观音塘社区-观音塘花园小区台变 | C177: 10kV | D177: 36.03 | E177: 64.26 | F177: 经济运行 | G177: 287.87 | H177: 否 | I177: 观音塘社区 | J177: 500 | K177: 城区供电组
A178: 176 | B178: CQ-观音塘社区-观音塘小区台变 | C178: 10kV | D178: 38.11 | E178: 73.74 | F178: 经济运行 | G178: 175.46 | H178: 否 | I178: 观音塘社区 | J178: 315 | K178: 城区供电组
A179: 177 | B179: CQ-观音塘社区-观音塘玉泉小区台变 | C179: 10kV | D179: 28.69 | E179: 53.37 | F179: 经济运行 | G179: 256.72 | H179: 否 | I179: 观音塘社区 | J179: 400 | K179: 城区供电组
A180: 178 | B180: CQ-观音塘社区-红星小区安置地台变 | C180: 10kV | D180: 24.55 | E180: 55.32 | F180: 经济运行 | G180: 108.65 | H180: 否 | I180: 观音塘社区 | J180: 160 | K180: 城区供电组
A181: 179 | B181: CQ-观音塘社区-惠民公司观音塘公租房台变-DW | C181: 10kV | D181: 3.8 | E181: 12.9 | F181: 轻载 | G181: 272.73 | H181: 否 | I181: 观音塘社区 | J181: 315 | K181: 城区供电组
A182: 180 | B182: CQ-观音塘社区-军民小区1号台变 | C182: 10kV | D182: 31.83 | E182: 57.13 | F182: 经济运行 | G182: 245.41 | H182: 否 | I182: 观音塘社区 | J182: 400 | K182: 城区供电组
A183: 181 | B183: CQ-观音塘社区-军民小区2号台变 | C183: 10kV | D183: 13.92 | E183: 31.22 | F183: 轻载 | G183: 309.89 | H183: 否 | I183: 观音塘社区 | J183: 400 | K183: 城区供电组
A184: 182 | B184: CQ-观音塘社区-军民小区3号台变 | C184: 10kV | D184: 30.05 | E184: 54.83 | F184: 经济运行 | G184: 251.82 | H184: 否 | I184: 观音塘社区 | J184: 400 | K184: 城区供电组
A185: 183 | B185: CQ-观音塘社区-松园1#台变 | C185: 10kV | D185: 19.1 | E185: 47.55 | F185: 轻载 | G185: 291.24 | H185: 否 | I185: 观音塘社区 | J185: 400 | K185: 城区供电组
A186: 184 | B186: CQ-观音塘社区-松园2#台变 | C186: 10kV | D186: 18.48 | E186: 40.91 | F186: 轻载 | G186: 293.47 | H186: 否 | I186: 观音塘社区 | J186: 400 | K186: 城区供电组
A187: 185 | B187: CQ-观音塘社区-腾越古镇二期1#箱变-DW | C187: 10kV | D187: 13.33 | E187: 34.32 | F187: 轻载 | G187: 491.42 | H187: 否 | I187: 观音塘社区 | J187: 630 | K187: 城区供电组
A188: 186 | B188: CQ-观音塘社区-腾越古镇二期2#箱变-DW | C188: 10kV | D188: 8.9 | E188: 19.27 | F188: 轻载 | G188: 516.54 | H188: 否 | I188: 观音塘社区 | J188: 630 | K188: 城区供电组
A189: 187 | B189: CQ-观音塘社区-腾越古镇一期1#箱变-DW | C189: 10kV | D189: 28.96 | E189: 54.94 | F189: 经济运行 | G189: 255.74 | H189: 否 | I189: 观音塘社区 | J189: 400 | K189: 城区供电组
A190: 188 | B190: CQ-观音塘社区-腾越古镇一期2#箱变-DW | C190: 10kV | D190: 16.08 | E190: 30.81 | F190: 轻载 | G190: 302.11 | H190: 否 | I190: 观音塘社区 | J190: 400 | K190: 城区供电组
A191: 189 | B191: CQ-观音塘社区-香槟庄园(4期)1#箱变-DW | C191: 10kV | D191: 4.69 | E191: 10.17 | F191: 轻载 | G191: 1072.24 | H191: 否 | I191: 观音塘社区 | J191: 1250 | K191: 城区供电组
A192: 190 | B192: CQ-观音塘社区-香槟庄园(二期)1#箱变-DW | C192: 10kV | D192: 4.37 | E192: 10.63 | F192: 轻载 | G192: 860.67 | H192: 否 | I192: 观音塘社区 | J192: 1000 | K192: 城区供电组
A193: 191 | B193: CQ-观音塘社区-香槟庄园(二期)2#箱变-DW | C193: 10kV | D193: 9.59 | E193: 21.89 | F193: 轻载 | G193: 650.95 | H193: 否 | I193: 观音塘社区 | J193: 800 | K193: 城区供电组
A194: 192 | B194: CQ-观音塘社区-香槟庄园1#箱变 | C194: 10kV | D194: 6.92 | E194: 17.83 | F194: 轻载 | G194: 670.18 | H194: 否 | I194: 观音塘社区 | J194: 800 | K194: 城区供电组
A195: 193 | B195: CQ-观音塘社区-香槟庄园三区箱变-DW | C195: 10kV | D195: 4.39 | E195: 11.38 | F195: 轻载 | G195: 688.39 | H195: 否 | I195: 观音塘社区 | J195: 800 | K195: 城区供电组
A196: 194 | B196: CQ-观音塘社区-香槟庄园四期配电室2#箱变-DW | C196: 10kV | D196: 8.27 | E196: 17.25 | F196: 轻载 | G196: =(J196-J196*D196/100)*0.9 -> 1031.96 | H196: 否 | I196: 观音塘社区 | J196: 1250 | K196: 城区供电组
A197: 195 | B197: CQ-观音塘社区-玉宸翠景小区1#箱变 | C197: 10kV | D197: 5.79 | E197: 13.68 | F197: 轻载 | G197: 423.95 | H197: 否 | I197: 观音塘社区 | J197: 500 | K197: 城区供电组
A198: 196 | B198: CQ-观音塘社区-玉宸翠景小区2#箱变 | C198: 10kV | D198: 7.96 | E198: 16.57 | F198: 轻载 | G198: 1035.45 | H198: 否 | I198: 观音塘社区 | J198: 1250 | K198: 城区供电组
A199: 197 | B199: CQ-满邑社区-095#线1#箱变 | C199: 10kV | D199: 23.7 | E199: 39.05 | F199: 经济运行 | G199: 549.36 | H199: 否 | I199: 满邑社区 | J199: 800 | K199: 城区供电组
A200: 198 | B200: CQ-满邑社区-菜园坡台变 | C200: 10kV | D200: 29.84 | E200: 57.11 | F200: 经济运行 | G200: 198.90 | H200: 否 | I200: 满邑社区 | J200: 315 | K200: 城区供电组
... 1868 more rows

Sheet Sheet2
A1: 备注 | B1: 季度平均负载率、最大负载率和负载情况：调取营销计量一体化系统该季度最后一月的数据；可开放容量=（配变容量-配变容量*平均负载率）*0.9；是否接入受限：负载情况为过载的填“是”，其余填“否”；覆盖区域：配变台区所属村委会。
